[Event "Polish University-ch Open 2024"]
[Site "Lublin"]
[Date "2024.02.24"]
[Round "9.5"]
[White "Niedbala, Bartlomiej"]
[Black "Walter, Szymon"]
[Result "1-0"]
[ECO "B46"]
[WhiteElo "2382"]
[BlackElo "2305"]
[Annotator "TA"]
[PlyCount "93"]
[EventDate "2024.02.22"]
[EventType "swiss"]
[EventCountry "POL"]
[SourceTitle "playchess.com"]
[Source "ChessBase"]
[SourceQuality "1"]
[TimeControl "600+3"]

{[%evp 18,93,47,30,42,40,38,20,86,7,9,0,0,0,0,12,18,13,49,34,42,0,25,28,34,0,53,35,44,25,43,1,112,31,45,59,86,4,417,105,130,145,150,122,385,383,427,431,434,443,438,429,419,250,496,385,477,479,725,305,749,719,1077,764,898,815,1618,1704,1629,1450,1454,1385,29972,29973,29981,29974,29998,29999]} 1. e4 {[%emt 0:00:01]} c5 {[%emt 0:00:02]} 2. Nf3 {[%emt 0:00:01]} e6 {[%emt 0:00:04]} 3. d4 {[%emt 0:00:01]} cxd4 {[%emt 0:00:01]} 4. Nxd4 {[%emt 0:00:01]} Nc6 {[%emt 0:00:01]} 5. Nc3 {[%emt 0:00:01]} a6 {[%emt 0:00:01]} 6. Nxc6 {[%emt 0:00:12]} bxc6 {[%emt 0:00:02]} 7. Qd3 {[%emt 0:00:01] B46: Sicilian: Taimanov: 5 Nc3 a6.} d5 {[%emt 0:00:03]} 8. Qg3 {[%emt 0:00:01]} Nf6 {[%emt 0:00:19]} 9. Be2 {[%emt 0:00:01]} a5 {[%emt 0:00:44]} 10. O-O {[%emt 0:00:46]} Ba6 {[%emt 0:00:17]} 11. Bxa6 {[%emt 0:01:21]} Rxa6 {[%emt 0:00:02]} 12. Re1 $146 {[%emt 0:00:48]} ({Predecessor:} 12. exd5 cxd5 13. Re1 g6 14. Qd3 Rb6 15. Bg5 Be7 16. Bxf6 Bxf6 17. Nxd5 Rxb2 18. Nxf6+ Qxf6 {0-1 Salinas Herrera,P (2514)-Hernandez Guerrero,G (2564) Iberoamericano Chess24 blitz 2020 (1.8)}) 12... Ra8 {[%emt 0:03:08]} (12... Rb6 $11) 13. Bg5 {[%emt 0:02:56]} (13. Be3 $1 $16) 13... Be7 $11 {[%emt 0:01:26]} 14. e5 {[%emt 0:00:08]} (14. b3 {feels hotter.} O-O 15. Bh6 Nh5 16. Qg4) 14... Nh5 {[%emt 0:00:12]} 15. Bxe7 {[%emt 0:00:15]} Qxe7 {[%emt 0:00:02]} 16. Qe3 {[%emt 0:00:38]} g5 {[%emt 0:01:07]} 17. Ne2 {[%emt 0:00:54]} O-O {[%emt 0:01:05]} 18. Rad1 {[%emt 0:00:19]} Ng7 {[%emt 0:00:11]} 19. Ng3 {[%emt 0:00:40]} Rab8 {[%emt 0:00:02]} 20. b3 {[%emt 0:00:04]} Rb4 {[%emt 0:00:08]} 21. Rd4 {[%emt 0:00:29]} c5 {[%emt 0:00:09]} (21... Rxd4 $11 22. Qxd4 h5) 22. Rdd1 $14 {[%emt 0:00:13]} h5 {[%emt 0:00:27]} 23. c3 {[%emt 0:00:18]} Rf4 {[%emt 0:00:05]} 24. Qe2 {[%emt 0:00:13]} g4 {[%emt 0:00:07]} (24... h4 $11 {remains equal.} 25. Nf1 f6) 25. c4 {[%emt 0:00:12]} ({White should try} 25. Qe3 $16 Qg5 26. c4 (26. Qxc5 h4 $14)) 25... h4 {[%emt 0:00:11]} 26. Nf1 {[%emt 0:00:01]} Re4 {[%emt 0:00:44] [#]} 27. Ne3 {[%emt 0:00:01]} (27. Qc2 $1 $16) 27... Rxe5 $2 {[%emt 0:00:18][%mdl 8192]} (27... dxc4 $1 $11 {and Black has nothing to worry.} 28. Qc2 (28. bxc4 Qg5 $17) 28... Rxe5) 28. cxd5 $2 {[%emt 0:00:05]} (28. Nxd5 $1 $18 {and the rest is easy.} Rxd5 29. cxd5 (29. Rxd5 f5 $18)) 28... g3 {[%emt 0:00:09]} 29. f4 {[%emt 0:00:15]} (29. hxg3 hxg3 30. fxg3 Rd8 $14) 29... Re4 {[%emt 0:00:03] [#]} 30. d6 $1 {[%emt 0:00:10]} Qf6 $2 {[%emt 0:00:01][%mdl 8192]} (30... gxh2+ $16 31. Kh1 (31. Kxh2 Qf6 $11) 31... Qd8) 31. Ng4 $18 {[%emt 0:00:02]} gxh2+ {[%emt 0:00:18]} 32. Kh1 $1 {[%emt 0:00:06]} Qg6 {[%emt 0:00:01]} 33. Qxe4 {[%emt 0:00:06]} Qxg4 {[%emt 0:00:01]} 34. d7 {[%emt 0:00:04]} Rd8 {[%emt 0:00:06]} 35. Rd3 {[%emt 0:00:13]} (35. Kxh2 $142 f6 36. f5 Qxe4 37. Rxe4) 35... Nf5 $2 {[%emt 0:00:01]} (35... Nh5 {might work better.} 36. Kxh2 Nxf4) 36. Qf3 {[%emt 0:00:02]} ({Don't take} 36. Kxh2 Nd4 37. f5 Qxe4 38. Rxe4 Kg7 39. fxe6 (39. Rxh4 exf5 40. Rhxd4 cxd4 $18) 39... Nxe6) 36... Qg7 {[%emt 0:00:05]} 37. Kxh2 {[%emt 0:00:03]} Kf8 {[%emt 0:00:02]} (37... Qg3+ $142 38. Qxg3+ hxg3+ 39. Kh3 Kf8) 38. Qf2 {[%emt 0:00:03]} (38. Qc6 $142) 38... Qh6 $2 {[%emt 0:00:07]} (38... Qg3+ 39. Qxg3 (39. Rxg3 hxg3+ $11) 39... hxg3+ 40. Kh1 (40. Kh3 Ke7 $18) 40... Ke7) 39. Qxc5+ $18 {[%emt 0:00:03]} Kg8 {[%emt 0:00:01]} 40. Rf1 {[%emt 0:00:01]} Kh7 {[%emt 0:00:01]} 41. Qxa5 {[%emt 0:00:04]} Qf8 {[%emt 0:00:06]} 42. Rc1 {[%emt 0:00:02]} Nh6 {[%emt 0:00:04]} 43. Qh5 {[%emt 0:00:04]} Qg7 {[%emt 0:00:02]} 44. Qxh4 {[%emt 0:00:05]} f6 {[%emt 0:00:04]} 45. Rg3 {[%emt 0:00:02]} Qe7 {[%emt 0:00:04]} 46. Rh1 {[%emt 0:00:01]} Rxd7 {[%emt 0:00:01]} 47. Qxh6+ {[%emt 0:00:01]} 1-0

[Event "Polish University-ch Open 2024"]
[Site "Lublin"]
[Date "2024.02.24"]
[Round "9.6"]
[White "Snihur, Piotr"]
[Black "Dzida, Kamil"]
[Result "0-1"]
[ECO "E01"]
[WhiteElo "2278"]
[BlackElo "2403"]
[Annotator "TA"]
[PlyCount "90"]
[EventDate "2024.02.22"]
[EventType "swiss"]
[EventCountry "POL"]
[SourceTitle "playchess.com"]
[Source "ChessBase"]
[SourceQuality "1"]
[TimeControl "600+3"]

{[%evp 9,90,0,20,-18,-22,-101,-98,-99,-109,-118,-112,-135,-125,-132,-125,-147,-151,-152,-114,-154,-153,-153,-155,-156,-156,-164,-166,-208,-177,-272,-266,-275,-277,-384,-349,-461,-274,-306,-327,-405,-277,-320,-246,-552,-512,-661,-660,-605,-595,-579,-553,-749,-692,-1137,-781,-29980,-29981,-29988,-29989,-29989,-29990,-29991,-29992,-29995,-29993,-29993,-29993,-29994,-29994,-29994,-29995,-29996,-29992,-29992,-29989,-29993,-29994,-29994,-29995,-29995,-29996,-29996,-29996]} 1. d4 {[%emt 0:00:02]} Nf6 {[%emt 0:00:01]} 2. Nf3 {[%emt 0:00:03]} e6 {[%emt 0:00:02]} 3. g3 {[%emt 0:00:10]} d5 {[%emt 0:00:17]} 4. c4 {[%emt 0:00:12]} Bb4+ {[%emt 0:00:08]} 5. Nbd2 {[%emt 0:00:13]} dxc4 {[%emt 0:00:26]} 6. Qc2 {[%emt 0:00:03]} b5 {[%emt 0:00:20]} 7. Bg2 {[%emt 0:00:03] [#]} (7. a4 $1 $11 {remains equal.}) 7... Bb7 $1 $17 {[%emt 0:00:10]} 8. O-O {[%emt 0:00:07][%cal Od2c4] Black is better.} O-O {[%emt 0:00:04]} 9. a3 {[%emt 0:00:42]} Bxd2 {[%emt 0:00:15]} 10. Bxd2 {[%emt 0:00:05]} Be4 {[%emt 0:00:02]} 11. Qc1 {[%emt 0:00:13]} Nc6 {[%emt 0:00:01][%cal Oe4f3] White is weak on the light squares} 12. Bc3 {[%emt 0:01:35]} a5 {[%emt 0:00:25]} 13. Rd1 {[%emt 0:00:08]} Nd5 {[%emt 0:00:22]} 14. Bf1 {[%emt 0:00:49] [#]} Bxf3 $1 {[%emt 0:00:04]} 15. exf3 {[%emt 0:00:01]} Qf6 {[%emt 0:00:11]} 16. f4 {[%emt 0:01:00]} Rfd8 {[%emt 0:01:20] Black has more active pieces.} 17. Bg2 {[%emt 0:00:37]} h6 {[%emt 0:00:15]} 18. a4 {[%emt 0:00:19]} b4 {[%emt 0:02:44]} 19. Be1 {[%emt 0:00:02]} (19. Bd2 {was called for.}) 19... Nxd4 $19 {[%emt 0:00:23]} 20. Qxc4 {[%emt 0:00:01] [#]} c5 {[%emt 0:00:01][%mdl 512]} 21. Rd3 {[%emt 0:01:03]} (21. Qd3 Rab8) 21... Rac8 {[%emt 0:00:44]} 22. Rad1 {[%emt 0:00:08]} Qe7 {[%emt 0:00:53]} (22... Nb6 $142 23. Qa6 Nxa4 24. Rxd4 cxd4 25. Qxa5 Nxb2) 23. b3 {[%emt 0:00:15]} Qc7 {[%emt 0:00:18] aiming for ...Nb6.} 24. Bf1 {[%emt 0:01:21]} Rd7 {[%emt 0:00:20] And now ...Nb6 would win.} 25. f3 {[%emt 0:00:09]} Rcd8 {[%emt 0:00:15] Hoping for ...Nb6.} 26. Kg2 $2 {[%emt 0:01:39]} (26. Rc1 {is more resistant.} Rc8 27. Qa6) 26... Nf5 {[%emt 0:00:09] A dynamic duo of knights.} 27. Bf2 {[%emt 0:00:02] [#] Against Nde3+} Nde3+ $1 {[%emt 0:00:10][%mdl 512]} 28. Bxe3 {[%emt 0:00:08]} Nxe3+ {[%emt 0:00:02]} 29. Rxe3 {[%emt 0:00:01] Strongly threatening Rxd7.} Rxd1 {[%emt 0:00:01]} 30. Re5 {[%emt 0:00:04]} Qd6 {[%emt 0:00:13]} 31. Rxc5 {[%emt 0:00:03]} Qd2+ {[%emt 0:00:38]} 32. Kh3 {[%emt 0:00:01]} Qf2 {[%emt 0:00:09][%csl LRf1,LRf3] Black mates.} 33. Rc8 {[%emt 0:00:02]} Rxc8 {[%emt 0:00:07]} ({And not} 33... Qxf1+ 34. Qxf1 Rxf1 35. Rxd8+ Kh7 36. Kg2 $11) 34. Qxc8+ {[%emt 0:00:01] KQR-KQB} Kh7 {[%emt 0:00:01]} 35. Bc4 {[%emt 0:00:09]} Rd2 {[%emt 0:00:01]} 36. f5 {[%emt 0:00:10]} Qxh2+ {[%emt 0:00:03]} 37. Kg4 {[%emt 0:00:01]} Rd4+ {[%emt 0:00:07]} 38. f4 {[%emt 0:00:01]} h5+ {[%emt 0:00:05]} 39. Kf3 {[%emt 0:00:01]} Qh1+ {[%emt 0:00:02]} 40. Ke3 {[%emt 0:00:02]} Qg1+ {[%emt 0:00:01]} 41. Kf3 {[%emt 0:00:00]} Qd1+ {[%emt 0:00:04]} 42. Ke3 {[%emt 0:00:02]} Qd2+ {[%emt 0:00:05]} 43. Kf3 {[%emt 0:00:00]} Qc3+ {[%emt 0:00:01]} 44. Kf2 {[%emt 0:00:03]} Rd2+ {[%emt 0:00:01]} 45. Be2 {[%emt 0:00:15]} Qxc8 {[%emt 0:00:02] Weighted Error Value: White=0.84/Black=0.29 (precise) .  Mistake:       	White=3     	Black=1      Inaccurate:     	White=5     	Black=1      OK:         	White=7     	Black=8      Best:        	---       	Black=2      Strong:       	---       	Black=1      Brilliant:      	---       	Black=1} 0-1

[Event "Polish University-ch Open 2024"]
[Site "Lublin"]
[Date "2024.02.24"]
[Round "9.7"]
[White "Klepek, Witold"]
[Black "Baum, Jonasz"]
[Result "1-0"]
[ECO "B90"]
[WhiteElo "2262"]
[BlackElo "2400"]
[Annotator "TA"]
[PlyCount "109"]
[EventDate "2024.02.22"]
[EventType "swiss"]
[EventCountry "POL"]
[SourceTitle "playchess.com"]
[Source "ChessBase"]
[SourceQuality "1"]
[TimeControl "600+3"]

{[%evp 10,109,20,-13,17,25,35,5,19,-16,-16,-17,-17,-64,-76,-87,-63,-85,-48,-107,-97,-116,0,14,91,107,81,20,91,78,92,0,0,0,22,20,18,-6,0,0,97,106,242,238,226,216,231,45,59,0,225,0,50,0,226,0,306,294,507,177,175,175,307,217,287,274,472,303,466,289,437,437,418,428,450,450,487,497,495,459,621,610,701,684,679,624,675,661,795,794,789,745,849,793,1333,1102,1480,1410,1321,1211,29973,29974]} 1. e4 {[%emt 0:00:02]} c5 {[%emt 0:00:00]} 2. Nf3 {[%emt 0:00:02]} d6 {[%emt 0:00:02]} 3. d4 {[%emt 0:00:06]} cxd4 {[%emt 0:00:01]} 4. Nxd4 {[%emt 0:00:01]} Nf6 {[%emt 0:00:01]} 5. Nc3 {[%emt 0:00:00]} a6 {[%emt 0:00:01]} 6. Rg1 {[%emt 0:00:01]} h5 {[%emt 0:00:03]} 7. Bg5 {[%emt 0:00:04]} b5 {[%emt 0:00:00]} 8. Bd3 {[%emt 0:00:38]} Bb7 {[%emt 0:00:41] The position is equal.} 9. a3 {[%emt 0:00:49]} Nbd7 {[%emt 0:00:21]} 10. Qe2 {[%emt 0:00:39]} g6 {[%emt 0:01:06]} 11. f4 {[%emt 0:00:36]} (11. f3 $11) 11... Qb6 $15 {[%emt 0:00:28]} 12. Nf3 {[%emt 0:00:10]} Bg7 {[%emt 0:01:01]} 13. O-O-O {[%emt 0:00:13]} O-O {[%emt 0:03:10]} 14. e5 {[%emt 0:00:07]} (14. f5 $15) 14... dxe5 $17 {[%emt 0:00:25]} 15. fxe5 {[%emt 0:00:02]} Nh7 {[%emt 0:00:14]} (15... Ng4 $17 {White must now prevent ...b4.} 16. e6 Nc5 (16... Qxe6 17. Qxe6 fxe6 18. Bxg6 $16) 17. Bxe7 Nxe6 18. Bxf8 Rxf8) 16. e6 $11 {[%emt 0:00:54]} (16. Bxe7 Rfe8 17. Bd6 Rad8 $17) 16... Qxe6 {[%emt 0:00:47]} (16... Bxf3 $11 {keeps the balance.} 17. gxf3 Nxg5 18. exd7 (18. Rxg5 Bh6 $15) 18... Qf6) 17. Qxe6 {[%emt 0:00:02]} (17. Bxe7 {seems wilder.} Qb6 18. Bxg6 Bh6+ 19. Kb1) 17... fxe6 {[%emt 0:00:02]} 18. Bxg6 {[%emt 0:00:02]} (18. Bxe7 $16 Rf7 19. Bd6 Bxc3 20. bxc3) 18... Nxg5 {[%emt 0:00:22]} (18... Bxf3 $11 19. Bxh7+ (19. Rxd7 Nxg5 20. gxf3 Nxf3 $19) 19... Kxh7 20. Rxd7 (20. gxf3 Ne5 $11) 20... Bc6 21. Rxe7 Rae8) 19. Nxg5 $16 {[%emt 0:00:32]} (19. Rxd7 Bxf3 20. gxf3 Nxf3 $17) 19... Ne5 {[%emt 0:00:12][%cal Bd7e5,Be5c4,Bc4a3][%mdl 32]} 20. Be4 {[%emt 0:00:45] White is more active.} (20. Bh7+ $16 Kh8 21. Be4 Bxe4 22. Ncxe4) 20... Bxe4 $11 {[%emt 0:00:54]} 21. Ncxe4 {[%emt 0:00:00]} Nc4 {[%emt 0:00:01]} 22. b3 {[%emt 0:00:09]} (22. Nxe6 Bxb2+ 23. Kb1 Rfc8 $11) 22... Nxa3 {[%emt 0:00:05]} (22... Ne3 $2 23. Rde1 Nd5 24. Nxe6 Bh6+ 25. Kb2 $18) 23. Nxe6 {[%emt 0:00:06]} Rfc8 {[%emt 0:00:17][%csl Ga3][%cal Rc8c2]} 24. N4c5 {[%emt 0:00:30] aiming for Rd5. A dynamic duo of knights.} Rc6 {[%emt 0:00:15] Black is weak on the light squares} (24... Bh6+ $1 $11 25. Kb2 Be3) 25. Rd5 $16 {[%emt 0:00:29][%cal Od5g5]} Rac8 {[%emt 0:00:02]} (25... Bh6+ $16 26. Kb2 b4) 26. Rg5 $1 $18 {[%emt 0:00:05]} (26. Rxh5 Nxc2 27. Nxg7 (27. Kxc2 Rxe6 28. Rd1 Rh6 $17) 27... Rxc5 28. Rxc5 Rxc5 $11) 26... Kh8 {[%emt 0:00:43] And now ...Bh6 would win.} 27. Rxh5+ {[%emt 0:00:01]} (27. Rxg7 Rxc5 28. Kb2 Nxc2 $11) 27... Kg8 {[%emt 0:00:01][%cal Oa3c2]} 28. Rg5 $2 {[%emt 0:00:01]} (28. Re1 $1 $18 {Rg5 is the strong threat.} Bf6 29. Re3) 28... Kh8 $1 $14 {[%emt 0:00:00]} 29. Rh5+ {[%emt 0:00:34]} (29. Rxg7 $14 Rxc5 30. Kb2) 29... Kg8 $18 {[%emt 0:00:01][%cal Oa3c2] [#]} 30. Rg5 $2 {[%emt 0:00:00]} (30. Re1 $1 $18 {Rg5 would now be deadly.} Bf6 31. Re3) 30... Kh8 $1 $14 {[%emt 0:00:00] Threatens to win with ...Bh6.} 31. Rh5+ {[%emt 0:01:44]} (31. Rxg7 $14 Rxc5 32. Kb2) 31... Kg8 $18 {[%emt 0:00:01][%cal Oa3c2] [#] White stays focused until the end.} 32. Rf1 $2 {[%emt 0:00:01]} (32. Re1 $1 $18 {Hoping for Rg5.} Kf7 33. Re4) 32... Bf6 {[%emt 0:00:07][%mdl 8192] Prevents Rg5+.} (32... Nxc2 $1 $11 {and Black has nothing to worry.} 33. Rg5 (33. Kxc2 Rxe6 34. Rg5 Re5 $15) 33... Rxe6 34. Rxg7+ (34. Nxe6 $2 Nd4+ 35. Kb1 Nxe6 $19) 34... Kxg7 35. Nxe6+ Kg6) 33. Rf3 {[%emt 0:00:45] White wants to mate with Rg3+.} Rxe6 $2 {[%emt 0:00:02]} (33... Kf7) 34. Nxe6 $2 {[%emt 0:00:05]} (34. Rg3+ Kf8 35. Nxe6+ Kf7 36. Rc5) 34... Rxc2+ {[%emt 0:00:03]} 35. Kd1 {[%emt 0:00:01]} Rb2 {[%emt 0:00:14]} (35... Rxg2 {was necessary.} 36. Nc5 (36. Rg3+ Rxg3 37. hxg3 a5 $18) 36... Rg1+ 37. Ke2 Nc2) 36. Nc7 {[%emt 0:00:12]} a5 {[%emt 0:00:04]} 37. Nxb5 {[%emt 0:00:05]} Nxb5 $2 {[%emt 0:00:03]} (37... Rb1+ 38. Ke2 Rb2+ 39. Ke1 Nc2+ 40. Kd1 Nb4) 38. Rxb5 {[%emt 0:00:01][%mdl 4096] Endgame. KRR-KRB} Ra2 {[%emt 0:00:02]} (38... Rxg2 {is a better defense.} 39. Rg3+ (39. Rxa5 Rxh2 40. Ra4 Kg7 $18) 39... Rxg3) 39. Rd5 {[%emt 0:00:17]} Kf7 {[%emt 0:00:03]} (39... Rxg2 $142 40. Rg3+ (40. Rxa5 Rxh2 41. Ra4 Kf7 $18) 40... Rxg3) 40. Rd2 {[%emt 0:00:01]} Ra1+ {[%emt 0:00:01]} 41. Ke2 {[%emt 0:00:01]} Ke6 {[%emt 0:00:02]} 42. Kf2 {[%emt 0:00:12]} Bh4+ {[%emt 0:00:03]} 43. g3 {[%emt 0:00:01]} Bf6 {[%emt 0:00:02]} 44. h4 {[%emt 0:00:02][%cal Bh2h4,Bh4h5][%mdl 32]} Rb1 {[%emt 0:00:07]} 45. Kg2 {[%emt 0:00:01]} Rc1 {[%emt 0:00:04]} 46. Re2+ {[%emt 0:00:15]} Kd7 {[%emt 0:00:07]} 47. Rf5 {[%emt 0:00:04] Wards off Rc5} Bc3 {[%emt 0:00:00]} 48. Rb5 {[%emt 0:00:01]} Bb4 {[%emt 0:00:00]} 49. h5 {[%emt 0:00:02]} Rc6 {[%emt 0:00:02]} 50. g4 {[%emt 0:00:02][%cal Bg3g4,Bg4g5][%mdl 32]} Ke8 {[%emt 0:00:02]} 51. Rf5 {[%emt 0:00:03]} e6 {[%emt 0:00:05]} 52. Rf3 {[%emt 0:00:03]} Ke7 {[%emt 0:00:09]} 53. g5 {[%emt 0:00:03]} Rc5 {[%emt 0:00:00]} 54. Rg3 {[%emt 0:00:01] Strongly threatening h6.} Bc3 {[%emt 0:00:01]} 55. Rc2 {[%emt 0:00:04] Weighted Error Value: White=0.51/Black=0.55.  Loses game:     	---       	Black=1      Missed win:     	White=3     	---        Mistake:       	White=7     	Black=10     Inaccurate:     	White=4     	Black=3      OK:         	White=13    	Black=9      Best:        	White=1     	Black=7      Strong:       	---       	Black=2} 1-0

[Event "Polish University-ch Open 2024"]
[Site "Lublin"]
[Date "2024.02.24"]
[Round "9.8"]
[White "Szustakowski, Antoni"]
[Black "Posluszny, Tomasz"]
[Result "1/2-1/2"]
[ECO "E20"]
[WhiteElo "2354"]
[BlackElo "2001"]
[Annotator "ChessBase"]
[PlyCount "101"]
[EventDate "2024.02.22"]
[EventType "swiss"]
[EventCountry "POL"]
[SourceTitle "playchess.com"]
[Source "ChessBase"]
[SourceQuality "1"]
[TimeControl "600+3"]

1. d4 {[%emt 0:00:01]} Nf6 {[%emt 0:00:01]} 2. c4 {[%emt 0:00:02]} e6 {[%emt 0:00:33]} 3. Nc3 {[%emt 0:00:06]} Bb4 {[%emt 0:00:22]} 4. f3 {[%emt 0:00:01]} c5 {[%emt 0:00:42]} 5. d5 {[%emt 0:00:02]} b5 {[%emt 0:00:21]} 6. e4 {[%emt 0:00:01]} d6 {[%emt 0:00:17]} 7. Nge2 {[%emt 0:00:02]} bxc4 {[%emt 0:00:24]} 8. Nf4 {[%emt 0:00:01]} e5 {[%emt 0:00:13]} 9. Nfe2 {[%emt 0:00:01]} Nbd7 {[%emt 0:00:20]} 10. Ng3 {[%emt 0:00:02]} Nb6 {[%emt 0:00:09]} 11. Be2 {[%emt 0:00:02]} O-O {[%emt 0:00:02]} 12. O-O {[%emt 0:00:02]} Bxc3 {[%emt 0:00:10]} 13. bxc3 {[%emt 0:00:01]} Bd7 {[%emt 0:00:01]} 14. a4 {[%emt 0:00:53]} a5 {[%emt 0:00:12]} 15. f4 {[%emt 0:00:01]} Ne8 {[%emt 0:02:22]} 16. fxe5 {[%emt 0:01:01]} dxe5 {[%emt 0:00:02]} 17. Be3 {[%emt 0:01:04]} Rc8 {[%emt 0:00:03]} 18. Bg4 {[%emt 0:00:13]} Nd6 {[%emt 0:00:18]} 19. Bxd7 {[%emt 0:00:44]} Qxd7 {[%emt 0:00:05]} 20. Qc2 {[%emt 0:00:07]} Rc7 {[%emt 0:00:50]} 21. Rfb1 {[%emt 0:00:19]} Rb8 {[%emt 0:00:04]} 22. Rb2 {[%emt 0:00:09]} Qc8 {[%emt 0:01:09]} 23. Rab1 {[%emt 0:00:12]} Rcb7 {[%emt 0:00:02]} 24. Qd1 {[%emt 0:01:07]} Nd7 {[%emt 0:00:14]} 25. Qc2 {[%emt 0:00:45]} Rxb2 {[%emt 0:00:12]} 26. Rxb2 {[%emt 0:00:01]} Rb7 {[%emt 0:00:20]} 27. h3 {[%emt 0:03:25]} Qb8 {[%emt 0:00:03]} 28. Rxb7 {[%emt 0:00:02]} Qxb7 {[%emt 0:00:01]} 29. Qf2 {[%emt 0:00:01]} Nxe4 {[%emt 0:00:25]} 30. Nxe4 {[%emt 0:00:28]} Qb1+ {[%emt 0:00:01]} 31. Kh2 {[%emt 0:00:01]} Qxe4 {[%emt 0:00:01]} 32. d6 {[%emt 0:00:29]} Qd5 {[%emt 0:00:19]} 33. Qh4 {[%emt 0:00:01]} f6 {[%emt 0:00:16]} 34. Qg4 {[%emt 0:00:05]} Qxd6 {[%emt 0:00:08]} 35. Qxc4+ {[%emt 0:00:02]} Kf8 {[%emt 0:00:03]} 36. Qb5 {[%emt 0:00:03]} Qc7 {[%emt 0:00:14]} 37. c4 {[%emt 0:00:03]} e4+ {[%emt 0:00:06]} 38. Kh1 {[%emt 0:00:01]} f5 {[%emt 0:00:01]} 39. Bd2 {[%emt 0:00:07]} Qd6 {[%emt 0:00:24]} 40. Qxa5 {[%emt 0:00:07]} Ke7 {[%emt 0:00:17]} 41. Bg5+ {[%emt 0:00:01]} Kf7 {[%emt 0:00:04]} 42. Qd8 {[%emt 0:00:04]} Qd1+ {[%emt 0:00:04]} 43. Kh2 {[%emt 0:00:01]} Qd6+ {[%emt 0:00:01]} 44. g3 {[%emt 0:00:01]} h6 {[%emt 0:00:07]} 45. Bf4 {[%emt 0:00:01]} Qd3 {[%emt 0:00:06]} 46. Qa8 {[%emt 0:00:11]} Qe2+ {[%emt 0:00:05]} 47. Kg1 {[%emt 0:00:01]} Qe1+ {[%emt 0:00:03]} 48. Kg2 {[%emt 0:00:01]} Qe2+ {[%emt 0:00:01]} 49. Kg1 {[%emt 0:00:01]} Qe1+ {[%emt 0:00:05]} 50. Kg2 {[%emt 0:00:00]} Qe2+ {[%emt 0:00:06]} 51. Kg1 {[%emt 0:00:19]} 1/2-1/2

[Event "Polish University-ch Open 2024"]
[Site "Lublin"]
[Date "2024.02.24"]
[Round "9.9"]
[White "Lukasiewicz, Krzysztof"]
[Black "Skurniak, Szymon"]
[Result "1-0"]
[ECO "D00"]
[WhiteElo "2290"]
[BlackElo "2096"]
[Annotator "TA"]
[PlyCount "59"]
[EventDate "2024.02.22"]
[EventType "swiss"]
[EventCountry "POL"]
[SourceTitle "playchess.com"]
[Source "ChessBase"]
[SourceQuality "1"]
[TimeControl "600+3"]

{[%evp 9,58,24,10,14,25,-12,6,0,42,38,42,53,87,29,154,151,144,137,225,252,233,209,366,364,466,459,420,422,492,473,492,395,553,564,522,488,1278,1264,1088,638,618,589,843,812,12841,7535,29982,29973,29989,29990,29999]} 1. d4 {[%emt 0:00:02]} Nf6 {[%emt 0:00:09]} 2. Bf4 {[%emt 0:00:02]} d5 {[%emt 0:00:03]} 3. e3 {[%emt 0:00:01]} c5 {[%emt 0:00:01]} 4. Nc3 {[%emt 0:00:01]} e6 {[%emt 0:00:34]} 5. Nb5 {[%emt 0:00:02]} Na6 {[%emt 0:00:01]} 6. c3 {[%emt 0:00:01]} Be7 {[%emt 0:00:11]} 7. Nf3 {[%emt 0:00:14]} O-O {[%emt 0:00:05]} 8. h4 {[%emt 0:00:05] The position is equal.} Ne4 {[%emt 0:00:48]} 9. a4 {[%emt 0:00:13][%cal Ba2a4,Ba4b5][%mdl 32]} b6 {[%emt 0:00:48]} 10. Bd3 {[%emt 0:00:19]} f5 {[%emt 0:00:59] [#]} 11. g4 {[%emt 0:01:31] White is more active.} c4 {[%emt 0:00:48]} (11... cxd4 $11 {keeps the balance.} 12. Nbxd4 Nac5 (12... fxg4 13. Nc6 $11)) 12. Bc2 $16 {[%emt 0:00:12]} Bd7 {[%emt 0:00:52]} 13. gxf5 {[%emt 0:00:34]} Bxb5 {[%emt 0:00:32]} (13... exf5 $16 14. Ne5 Kh8) 14. axb5 $18 {[%emt 0:00:08]} Nc7 {[%emt 0:00:02]} 15. fxe6 {[%emt 0:01:11]} Rxf4 $2 {[%emt 0:00:10]} (15... Nxe6 16. Be5 Rf5) 16. exf4 {[%emt 0:00:03][%cal Be3f4,Bf4g5][%mdl 32]} Nxe6 {[%emt 0:00:01]} 17. Ng5 {[%emt 0:01:34]} Bxg5 {[%emt 0:00:51]} 18. fxg5 {[%emt 0:00:29]} Nf4 {[%emt 0:00:13]} 19. Qg4 {[%emt 0:00:37] Prevents Ng2+} (19. Qf3 Qf8 20. Kd1 Nd3 21. Qxf8+ Rxf8 22. Bxd3 (22. Rxa7 $2 {is the wrong capture.} Ndxf2+ 23. Kc1 Nxh1 $19) 22... Nxf2+ 23. Kd2 Nxh1 24. Rxh1 cxd3 $16) 19... Qd6 {[%emt 0:00:23]} 20. O-O {[%emt 0:00:28][%cal Bh1f1,Bf1e1,Be1e3][%mdl 32]} Rf8 {[%emt 0:02:12][%cal Ba8f8,Bf8f4,Bf4g4][%mdl 32]} 21. Bxe4 {[%emt 0:00:54]} dxe4 {[%emt 0:00:01]} 22. Rxa7 {[%emt 0:00:02][%cal Ba1a7,Ba7e7,Be7e6][%mdl 32]} Ne6 {[%emt 0:00:15]} (22... h5 $142 23. gxh6 Qxh6) 23. Re1 {[%emt 0:01:30]} Rf4 {[%emt 0:00:01]} 24. Qg3 {[%emt 0:00:01]} Qd5 {[%emt 0:00:24]} 25. Re3 {[%emt 0:00:01]} Qf5 {[%emt 0:00:11][%cal Of4g4] Strongly threatening ...Rg4!} 26. Kf1 {[%emt 0:00:20]} Qxb5 {[%emt 0:00:46]} 27. Re7 {[%emt 0:00:13]} Qf5 {[%emt 0:00:00] [#]} 28. Rxe6 $1 {[%emt 0:00:06] White mates.} Rg4 {[%emt 0:00:00]} (28... b5 29. Re8+) 29. Qb8+ {[%emt 0:00:03]} Kf7 {[%emt 0:00:00]} 30. Qe8# {[%emt 0:00:02] Black got outplayed after the opening.   Weighted Error Value: White=0.54/Black=0.70.  Mistake:       	White=1     	Black=4      Inaccurate:     	White=1     	Black=4      OK:         	White=9     	Black=4} 1-0